bitfinex/quotes_BTCUSD_20241024
["timestamp","ask_amount","ask_price","bid_price","bid_amount"]
[1729778810550,0.15448322,67744.0,67743.0,0.000835]
[1729778810736,0.30209722,67744.0,67743.0,0.000835]
[1729778810986,0.15448322,67744.0,67743.0,0.000835]
[1729778811209,0.30209722,67744.0,67743.0,0.000835]
[1729778811890,0.40472794,67744.0,67743.0,0.000835]
[1729778812118,0.42772794,67744.0,67743.0,0.000835]
[1729778812373,0.59064317,67744.0,67743.0,0.000835]
[1729778812600,0.92321419,67744.0,67743.0,0.000835]
[1729778812823,1.02821419,67744.0,67743.0,0.000835]
[1729778813037,1.02684412,67744.0,67743.0,0.000835]
[1729778813264,1.02884052,67744.0,67743.0,0.000835]
[1729778813484,1.02884052,67744.0,67736.0,0.000835]
[1729778813485,0.270629,67737.0,67736.0,0.000835]
[1729778813739,0.69231356,67737.0,67736.0,0.000835]
[1729778813970,0.72669422,67737.0,67736.0,0.000835]
[1729778814199,0.85910482,67737.0,67736.0,0.000835]
[1729778815119,0.86410482,67737.0,67736.0,0.000835]
[1729778815368,1.06422837,67737.0,67736.0,0.000835]
[1729778815606,1.02153414,67737.0,67736.0,0.000835]
[1729778817650,1.02947853,67737.0,67736.0,0.000835]
[1729778817873,0.89712262,67737.0,67736.0,0.000835]
[1729778818566,1.02947853,67737.0,67736.0,0.000835]
[1729778818803,1.03147853,67737.0,67736.0,0.000835]
[1729778819068,0.89712262,67737.0,67736.0,0.000835]
[1729778820071,0.8970225,67737.0,67736.0,0.000835]
[1729778820544,1.02932599,67737.0,67736.0,0.000835]
[1729778820756,0.8970225,67737.0,67736.0,0.000835]
[1729778820968,0.8990225,67737.0,67736.0,0.000835]
[1729778821186,0.8970225,67737.0,67736.0,0.000835]
[1729778821631,0.94171555,67737.0,67736.0,0.000835]
[1729778821866,0.8970225,67737.0,67736.0,0.000835]
[1729778822103,1.07601941,67737.0,67736.0,0.000835]
[1729778822327,0.94371231,67737.0,67736.0,0.000835]
[1729778822972,0.94371231,67737.0,67732.0,0.0178062]
[1729778822973,0.42140902,67733.0,67732.0,0.0178062]
[1729778823202,0.73270814,67733.0,67732.0,0.0178062]
[1729778823403,0.73270814,67733.0,67711.0,0.000835]
[1729778823404,0.170684,67712.0,67711.0,0.000835]
[1729778823620,0.30445502,67712.0,67711.0,0.000835]
[1729778824058,0.30836077,67712.0,67711.0,0.000835]
[1729778824488,0.28818058,67712.0,67711.0,0.000835]
[1729778824697,0.28818058,67712.0,67711.0,0.148521]
[1729778824698,0.00390575,67712.0,67711.0,0.148521]
[1729778825133,0.13377102,67719.0,67713.0,0.29536]
[1729778825370,0.15050381,67718.0,67711.0,0.000835]
[1729778825597,0.15439714,67718.0,67713.0,0.295364]
[1729778825819,0.15439714,67718.0,67717.0,0.147673]
[1729778826027,0.15439714,67718.0,67715.0,0.147676]
[1729778826277,0.15439714,67718.0,67713.0,0.147679]
[1729778826505,0.15439714,67718.0,67711.0,0.000835]
[1729778826506,0.13377102,67714.0,67711.0,0.000835]
[1729778826736,0.170684,67712.0,67711.0,0.000835]
[1729778826975,0.32118781,67712.0,67711.0,0.000835]
[1729778827202,0.32508873,67712.0,67711.0,0.000835]
[1729778827423,0.74045419,67712.0,67711.0,0.000835]
[1729778827671,0.74045419,67712.0,67687.0,0.295474]
[1729778827672,0.023,67700.0,67687.0,0.08]
[1729778827891,0.17350381,67699.0,67698.0,0.22076517]
[1729778828118,0.023,67697.0,67687.0,0.08]
[1729778828337,0.023,67695.0,67687.0,0.08]
[1729778828550,0.13377102,67693.0,67687.0,0.08]
[1729778828796,0.15050381,67692.0,67691.0,0.14773]
[1729778829013,0.00384081,67692.0,67691.0,0.14773]
[1729778829446,0.22076517,67705.0,67696.0,0.147719]
[1729778829447,0.22076517,67697.0,67696.0,0.147719]
[1729778829879,0.13377102,67699.0,67698.0,0.147714]
[1729778830384,0.13377102,67699.0,67687.0,0.08]
[1729778830385,0.29765193,67699.0,67687.0,0.08]
[1729778830607,0.15050381,67698.0,67696.0,0.147717]
[1729778830837,0.13377102,67697.0,67694.0,0.295443]
[1729778831092,0.13377102,67697.0,67696.0,0.147717]
[1729778831342,0.13377102,67697.0,67694.0,0.295443]
[1729778831581,0.13377102,67697.0,67696.0,0.147719]
[1729778832088,0.13377102,67697.0,67696.0,0.137719]
[1729778832313,0.13377102,67697.0,67687.0,0.08]
[1729778832314,0.28427483,67697.0,67687.0,0.08]
[1729778832516,0.22076517,67705.0,67687.0,0.08]
[1729778832517,0.13377102,67696.0,67695.0,0.147721]
[1729778832763,0.13377102,67700.0,67694.0,0.295446]
[1729778832979,0.22076517,67705.0,67689.0,0.00295434]
[1729778833192,0.28427483,67704.0,67701.0,0.147707]
[1729778833404,0.43197683,67704.0,67693.0,0.295449]
[1729778833640,0.13377102,67700.0,67698.0,0.295429]
[1729778833857,0.13377102,67700.0,67699.0,0.147712]
[1729778834775,0.295366,67713.0,67693.0,0.295449]
[1729778834776,0.22076517,67711.0,67695.0,0.13377102]
[1729778834997,0.22076517,67711.0,67710.0,0.147688]
[1729778835254,0.13377102,67711.0,67710.0,0.147688]
[1729778835455,0.06607476,67720.0,67710.0,0.147688]
[1729778835456,0.22076517,67716.0,67715.0,0.147677]
[1729778835932,0.29532,67723.0,67701.0,0.22576517]
[1729778836144,0.22076517,67720.0,67717.0,0.147671]
[1729778836358,0.15050381,67719.0,67715.0,0.147676]
[1729778836575,0.147676,67716.0,67701.0,0.22076517]
[1729778836790,0.15050381,67715.0,67701.0,0.22076517]
[1729778837010,0.147687,67711.0,67694.0,0.015]
[1729778837225,0.15050381,67710.0,67697.0,0.005]
[1729778837442,0.15414165,67710.0,67697.0,0.005]
[1729778837681,0.15414165,67710.0,67702.0,0.147704]
[1729778837682,0.147696,67707.0,67702.0,0.147704]
[1729778837897,0.147697,67706.0,67702.0,0.147704]
[1729778838090,0.15134997,67706.0,67702.0,0.147704]
[1729778838332,0.15134997,67706.0,67695.0,0.295439]
[1729778838333,0.15050381,67705.0,67695.0,0.295439]
[1729778838563,0.15050381,67705.0,67684.0,0.306322]
[1729778838564,0.15050381,67705.0,67693.0,0.0809]
[1729778838777,0.295412,67702.0,67694.0,0.295447]
[1729778839076,0.15050381,67701.0,67693.0,0.0809]
[1729778839179,0.147714,67699.0,67694.0,0.147723]
[1729778839404,0.15414764,67701.0,67694.0,0.295447]
[1729778839405,0.15050381,67698.0,67694.0,0.295447]
[1729778839637,0.15413342,67698.0,67695.0,0.14772]
[1729778839867,0.15413342,67698.0,67693.0,0.0809]
[1729778840094,0.15413342,67698.0,67692.0,0.147727]
[1729778840095,0.147719,67696.0,67692.0,0.147727]
[1729778840344,0.15413342,67698.0,67690.0,0.295464]
[1729778840345,0.15050381,67695.0,67690.0,0.295464]
[1729778840550,0.15415102,67695.0,67685.0,0.077]
[1729778840767,0.06216587,67694.0,67690.0,0.14773]
[1729778840978,0.15050381,67693.0,67692.0,0.147727]
[1729778841199,0.15414437,67693.0,67692.0,0.147727]
[1729778841407,0.00364056,67693.0,67692.0,0.147727]
[1729778841867,0.22076517,67703.0,67690.0,0.00295432]
[1729778841868,0.295416,67702.0,67695.0,0.147719]
[1729778842096,0.295442,67695.0,67686.0,0.295481]
[1729778842331,0.15050381,67701.0,67678.0,0.0769]
[1729778842332,0.13377102,67687.0,67678.0,0.0769]
[1729778842575,0.00363382,67694.0,67679.0,0.005]
[1729778842803,0.22076517,67693.0,67691.0,0.147729]
[1729778843016,0.36849117,67693.0,67685.0,0.295486]
[1729778843240,0.147732,67690.0,67686.0,0.14774]
[1729778843486,0.15050381,67689.0,67688.0,0.147736]
[1729778843711,0.16429991,67689.0,67686.0,0.147739]
[1729778843957,0.0137961,67688.0,67687.0,0.147737]
[1729778844206,0.0137961,67688.0,67685.0,0.295486]
[1729778844207,0.16429991,67688.0,67685.0,0.147741]
[1729778844437,0.295456,67692.0,67685.0,0.147741]
[1729778844438,0.16429991,67687.0,67685.0,0.147741]
[1729778844649,0.0137961,67686.0,67681.0,0.295503]
[1729778844769,0.16429991,67685.0,67680.0,0.443256]
[1729778844993,0.31204291,67685.0,67678.0,0.372415]
[1729778845217,0.31204291,67685.0,67677.0,0.29552]
[1729778845432,0.16429991,67685.0,67681.0,0.14775]
[1729778845645,0.31204291,67685.0,67679.0,0.147754]
[1729778845867,0.31204291,67685.0,67679.0,0.147755]
[1729778846085,0.16429991,67685.0,67677.0,0.29552]
[1729778846322,0.16429991,67685.0,67680.0,0.295507]
[1729778846526,0.16429991,67685.0,67681.0,0.14775]
[1729778846763,0.16429991,67685.0,67680.0,0.295507]
[1729778846764,0.01378931,67685.0,67683.0,0.295494]
[1729778846996,0.01378931,67685.0,67684.0,0.14858]
[1729778848077,0.01378931,67685.0,67684.0,0.000835]
[1729778848308,0.47673277,67685.0,67684.0,0.000835]
[1729778848518,0.48037995,67685.0,67684.0,0.000835]
[1729778849170,0.3156833,67685.0,67684.0,0.000835]
[1729778850511,0.30189399,67685.0,67684.0,0.000835]
[1729778850755,0.31568108,67685.0,67684.0,0.000835]
[1729778851697,0.80904625,67685.0,67684.0,0.000835]
[1729778851937,0.24776,67677.0,67676.0,0.000835]
[1729778852171,0.57245101,67677.0,67676.0,0.000835]
[1729778852385,0.82266392,67677.0,67676.0,0.000835]
[1729778852605,0.82766392,67677.0,67676.0,0.000835]
[1729778852829,1.00544743,67677.0,67676.0,0.000835]
[1729778853054,1.02218022,67677.0,67676.0,0.000835]
[1729778853274,0.97816773,67677.0,67676.0,0.000835]
[1729778853499,0.99195603,67677.0,67676.0,0.000835]
[1729778853720,0.83645222,67677.0,67676.0,0.000835]
[1729778854147,0.57245222,67677.0,67676.0,0.000835]
[1729778854652,0.47243822,67677.0,67676.0,0.000835]
[1729778854877,0.1679072,67677.0,67676.0,0.148597]
[1729778855094,0.1679072,67677.0,67676.0,0.000835]
[1729778855309,0.01740339,67677.0,67676.0,0.148597]
[1729778855528,0.01740339,67677.0,67676.0,0.22705223]
[1729778855745,0.0137743,67677.0,67676.0,0.22705223]
[1729778855973,0.0137743,67677.0,67676.0,0.23205223]
[1729778856189,0.22076517,67694.0,67676.0,0.23205223]
[1729778856190,0.0137743,67693.0,67692.0,0.147727]
[1729778856637,0.0137743,67693.0,67690.0,0.14773]
[1729778856638,0.30085988,67693.0,67690.0,0.14773]
[1729778856863,0.14773,67691.0,67688.0,0.147736]
[1729778857086,0.14773,67691.0,67677.0,0.005]
[1729778857087,0.0137743,67690.0,67687.0,0.147737]
[1729778857300,0.0137743,67689.0,67688.0,0.147736]
[1729778857746,0.00281716,67689.0,67688.0,0.147736]
[1729778857981,0.01378184,67689.0,67688.0,0.28150702]
[1729778858222,0.016599,67689.0,67688.0,0.28150702]
[1729778858475,0.01378184,67689.0,67688.0,0.147736]
[1729778858720,0.01659686,67689.0,67688.0,0.147736]
[1729778860065,0.01659686,67689.0,67688.0,0.152736]
[1729778860302,0.01659686,67689.0,67688.0,0.334636]
[1729778860303,0.00281502,67689.0,67688.0,0.334636]
[1729778860519,0.22076517,67701.0,67700.0,0.14771]
[1729778860752,0.23736559,67701.0,67700.0,0.14771]
[1729778861202,0.23736559,67701.0,67695.0,0.147721]
[1729778861429,0.01377899,67700.0,67699.0,0.147712]
[1729778861905,0.01660897,67700.0,67699.0,0.147712]
[1729778862127,0.01660897,67700.0,67695.0,0.295442]
[1729778862395,0.01377899,67699.0,67687.0,0.005]
[1729778862612,0.01377899,67698.0,67697.0,0.147717]
[1729778862816,0.01377899,67698.0,67683.0,0.11]
[1729778862817,0.16430917,67698.0,67694.0,0.147721]
[1729778863040,0.01377899,67697.0,67694.0,0.147721]
[1729778863251,0.01377899,67696.0,67695.0,0.147721]
[1729778863476,0.01659206,67696.0,67695.0,0.147721]
[1729778863703,0.01377899,67696.0,67695.0,0.147721]
[1729778863922,0.01659404,67696.0,67695.0,0.147721]
[1729778864148,0.01377899,67696.0,67695.0,0.147721]
[1729778864361,0.01377899,67696.0,67691.0,0.295459]
[1729778864362,0.0165919,67696.0,67691.0,0.295459]
[1729778864579,0.01377899,67695.0,67694.0,0.147722]
[1729778864838,0.01377899,67695.0,67694.0,0.23097633]
[1729778864839,0.00281082,67695.0,67694.0,0.23097633]
[1729778865084,0.00281082,67695.0,67694.0,0.416622]
[1729778865300,0.22076517,67703.0,67702.0,0.147706]
[1729778865524,0.22076517,67703.0,67694.0,0.0753]
[1729778865761,0.20584687,67710.0,67695.0,0.295442]
[1729778865986,0.22076517,67705.0,67702.0,0.295411]
[1729778866204,0.0168409,67704.0,67703.0,0.147702]
[1729778866420,0.0168409,67704.0,67699.0,0.295422]
[1729778866633,0.00306103,67704.0,67703.0,0.147703]
[1729778866860,0.00306103,67704.0,67699.0,0.295422]
[1729778866861,0.01684483,67704.0,67699.0,0.295422]
[1729778867066,0.01684483,67704.0,67694.0,0.0753]
[1729778867067,0.0137838,67703.0,67701.0,0.147706]
[1729778867290,0.0137838,67702.0,67701.0,0.147706]
[1729778867760,0.01666979,67702.0,67701.0,0.147706]
[1729778867996,0.0137838,67702.0,67701.0,0.147706]
[1729778869104,0.22076517,67712.0,67708.0,0.147692]
[1729778869321,0.22076517,67712.0,67701.0,0.147708]
[1729778869322,0.01378621,67702.0,67701.0,0.147708]
[1729778869551,0.37126898,67712.0,67699.0,0.300425]
[1729778869552,0.01669149,67711.0,67710.0,0.147688]
[1729778870040,0.01669149,67711.0,67710.0,0.44408851]
[1729778870260,0.01669149,67711.0,67710.0,0.45113487]
[1729778870261,0.00290528,67711.0,67710.0,0.45113487]
[1729778870473,0.22076517,67719.0,67718.0,0.147671]
[1729778870927,0.22368758,67719.0,67718.0,0.147671]
[1729778871159,0.001652,67722.0,67721.0,0.147664]
[1729778872279,0.001652,67722.0,67714.0,0.295359]
[1729778872280,0.001652,67722.0,67715.0,0.295355]
[1729778872476,0.001652,67722.0,67717.0,0.147671]
[1729778872477,0.15215581,67722.0,67717.0,0.147671]
[1729778872708,0.15215581,67722.0,67710.0,0.0826]
[1729778872709,0.15215581,67722.0,67720.0,0.147666]
[1729778872931,0.14767,67719.0,67711.0,0.147686]
[1729778873140,0.147666,67721.0,67716.0,0.147675]
[1729778873399,0.29981981,67722.0,67711.0,0.443058]
[1729778873632,0.147665,67721.0,67717.0,0.147673]
[1729778873872,0.147664,67721.0,67717.0,0.147672]
[1729778874505,0.15215581,67722.0,67710.0,0.0826]
[1729778874713,0.29981981,67722.0,67717.0,0.147672]
[1729778874938,0.147665,67721.0,67717.0,0.147672]
[1729778875130,0.00165,67721.0,67717.0,0.295346]
[1729778875347,0.00165,67721.0,67719.0,0.147668]
[1729778875553,0.00165,67721.0,67717.0,0.295346]
[1729778875760,0.00165,67721.0,67719.0,0.147667]
[1729778875974,0.00165,67721.0,67717.0,0.295346]
[1729778876189,0.00165,67721.0,67720.0,0.147666]
[1729778878334,0.00165,67721.0,67712.0,0.295368]
[1729778878555,0.00165,67721.0,67710.0,0.0826]
[1729778878781,0.00165,67721.0,67718.0,0.147669]
[1729778879424,0.149315,67721.0,67716.0,0.147673]
[1729778879619,0.00165,67721.0,67718.0,0.147669]
[1729778879836,0.00165,67721.0,67719.0,0.147668]
[1729778880069,0.00165,67721.0,67717.0,0.295343]
[1729778880313,0.00165,67721.0,67718.0,0.147669]
[1729778880553,0.149314,67721.0,67718.0,0.147669]
[1729778880793,0.00165,67721.0,67717.0,0.295343]
[1729778881233,0.149315,67721.0,67718.0,0.147669]
[1729778881457,0.00165,67721.0,67720.0,0.147666]
[1729778884215,0.00165,67721.0,67710.0,0.0826]
[1729778884216,0.00165,67721.0,67715.0,0.295355]
[1729778884459,0.13408301,67718.0,67717.0,0.295346]
[1729778884698,0.00165,67721.0,67719.0,0.147667]
[1729778884951,0.00165,67721.0,67716.0,0.147675]
[1729778885242,0.00165,67721.0,67711.0,0.295371]
[1729778885397,0.149315,67721.0,67717.0,0.147672]
[1729778885623,0.149315,67721.0,67718.0,0.147671]
[1729778886580,0.00165,67721.0,67720.0,0.147666]
[1729778886839,0.00165,67721.0,67711.0,0.295372]
[1729778887053,0.149314,67721.0,67717.0,0.147673]
[1729778887287,0.00165,67721.0,67718.0,0.147669]
[1729778887501,0.149314,67721.0,67718.0,0.147669]
[1729778887738,0.13408301,67719.0,67718.0,0.147669]
[1729778888651,0.13408301,67719.0,67717.0,0.147671]
[1729778888906,0.13408301,67719.0,67706.0,0.005]
[1729778888907,0.147683,67713.0,67709.0,0.147689]
[1729778889123,0.147683,67713.0,67704.0,0.295403]
[1729778889124,0.13408301,67710.0,67708.0,0.147691]
[1729778889350,0.13408301,67710.0,67709.0,0.14769]
[1729778889995,0.13740293,67710.0,67709.0,0.14769]
[1729778890290,0.00331992,67710.0,67709.0,0.14769]
[1729778890656,0.00165,67721.0,67710.0,0.295377]
[1729778890878,0.22076517,67717.0,67716.0,0.147675]
[1729778891093,0.00334521,67720.0,67706.0,0.295394]
[1729778891305,0.147667,67720.0,67717.0,0.147673]
[1729778891531,0.15215381,67721.0,67715.0,0.147676]
[1729778891532,0.147669,67719.0,67715.0,0.147676]
[1729778891739,0.13408301,67716.0,67711.0,0.295372]
[1729778892193,0.13408301,67716.0,67714.0,0.147678]
[1729778892708,0.13408301,67716.0,67700.0,0.29542]
[1729778892709,0.295365,67713.0,67700.0,0.29542]
[1729778892959,0.295365,67713.0,67702.0,0.295412]
[1729778892960,0.13408301,67707.0,67702.0,0.295412]
[1729778893192,0.295379,67710.0,67688.0,0.000826]
[1729778893193,0.13408301,67703.0,67688.0,0.000826]
[1729778893425,0.13408301,67691.0,67690.0,0.66395717]
[1729778893666,0.13408301,67691.0,67690.0,0.147732]
[1729778893892,0.13408301,67691.0,67688.0,0.296299]
[1729778894140,0.15050381,67702.0,67689.0,0.0029545]
[1729778894141,0.13408301,67699.0,67689.0,0.0029545]
[1729778894359,0.22076517,67697.0,67689.0,0.0029545]
[1729778894575,0.22076517,67697.0,67696.0,0.147719]
[1729778894798,0.22076517,67697.0,67694.0,0.147722]
[1729778895027,0.15050381,67698.0,67695.0,0.147721]
[1729778895266,0.295438,67696.0,67688.0,0.000826]
[1729778895482,0.147727,67693.0,67689.0,0.147732]
[1729778895701,0.01380625,67692.0,67688.0,0.296298]
[1729778895927,0.13408301,67694.0,67688.0,0.296298]
[1729778895928,0.13408301,67689.0,67688.0,0.000826]
[1729778896144,0.14788926,67689.0,67688.0,0.000826]
[1729778896385,0.28181701,67689.0,67688.0,0.000826]
[1729778896676,0.13712334,67689.0,67688.0,0.148562]
[1729778896902,0.13712334,67689.0,67688.0,0.000826]
[1729778897341,0.58549122,67689.0,67688.0,0.000826]
[1729778897783,0.52746089,67689.0,67688.0,0.000826]
[1729778898456,0.62234869,67689.0,67688.0,0.000826]
[1729778899356,0.58554895,67689.0,67688.0,0.000826]
[1729778900731,0.59655606,67689.0,67688.0,0.000826]
[1729778900944,0.61955606,67689.0,67688.0,0.000826]
[1729778903199,0.70741493,67689.0,67688.0,0.000826]
[1729778903911,0.01404744,67689.0,67688.0,0.000826]
[1729778904151,0.00304033,67689.0,67688.0,0.000826]
[1729778904378,0.147729,67692.0,67688.0,0.000826]
[1729778904597,0.147734,67689.0,67688.0,0.000826]
[1729778904814,0.16175979,67689.0,67688.0,0.000826]
[1729778905056,0.01402579,67689.0,67688.0,0.000826]
[1729778905292,0.16175979,67689.0,67688.0,0.000826]
[1729778905555,0.30125649,67689.0,67688.0,0.000826]
[1729778905795,0.42317864,67689.0,67688.0,0.000826]
[1729778906976,0.44617864,67689.0,67688.0,0.000826]
[1729778907193,0.3352636,67689.0,67688.0,0.000826]
[1729778907649,0.4108636,67689.0,67688.0,0.000826]
[1729778908375,0.41084648,67689.0,67688.0,0.000826]
[1729778910204,0.41249648,67689.0,67688.0,0.000826]
[1729778911183,0.275743,67685.0,67684.0,0.000825]
[1729778911419,0.64622518,67685.0,67684.0,0.000825]
[1729778911966,0.64622369,67685.0,67684.0,0.000825]
[1729778912398,0.64122369,67685.0,67684.0,0.000825]
[1729778913303,0.31225288,67685.0,67684.0,0.000825]
[1729778914446,0.48575669,67685.0,67684.0,0.000825]
[1729778915101,0.33525288,67685.0,67684.0,0.000825]
[1729778915966,0.31225288,67685.0,67684.0,0.000825]
[1729778916247,0.16450988,67685.0,67684.0,0.000825]
[1729778916464,0.01400607,67685.0,67684.0,0.14857]
[1729778916711,0.00301757,67685.0,67684.0,0.14857]
[1729778916919,0.00165,67689.0,67684.0,0.000825]
[1729778917161,0.00165,67689.0,67684.0,0.148568]
[1729778917162,0.22076517,67688.0,67684.0,0.148568]
[1729778917384,0.23175367,67687.0,67684.0,0.000825]
[1729778917613,0.147743,67685.0,67684.0,0.000825]
[1729778917832,0.0109885,67686.0,67684.0,0.000825]
[1729778918296,0.00165,67689.0,67685.0,0.147742]
[1729778918297,0.149386,67689.0,67685.0,0.147742]
[1729778918504,0.15215381,67689.0,67686.0,0.295482]
[1729778918731,0.15215381,67689.0,67684.0,0.296315]
[1729778918732,0.15215381,67689.0,67685.0,0.295486]
[1729778918948,0.16314231,67689.0,67686.0,0.147741]
[1729778919164,0.15215381,67689.0,67684.0,0.000825]
[1729778919389,0.15215381,67689.0,67685.0,0.295486]
[1729778919667,0.147737,67688.0,67684.0,0.14857]
[1729778919868,0.01101948,67688.0,67684.0,0.000825]
[1729778920085,0.15215381,67689.0,67686.0,0.14774]
[1729778920302,0.01101948,67688.0,67684.0,0.148569]
[1729778920521,0.15875848,67687.0,67684.0,0.148569]
[1729778920743,0.01101948,67686.0,67684.0,0.148569]
[1729778920987,0.01101948,67685.0,67684.0,0.000825]
[1729778921210,0.16152329,67685.0,67684.0,0.000825]
[1729778921653,0.30926629,67685.0,67684.0,0.000825]
[1729778922340,0.16152329,67685.0,67684.0,0.000825]
[1729778922549,0.30926629,67685.0,67684.0,0.000825]
[1729778922784,0.16152329,67685.0,67684.0,0.14857]
[1729778922991,0.16152329,67685.0,67684.0,0.000825]
[1729778923473,0.16152329,67685.0,67684.0,0.14857]
[1729778924069,0.16152329,67685.0,67684.0,0.000825]
[1729778924276,0.30926629,67685.0,67684.0,0.000825]
[1729778924702,0.16152329,67685.0,67684.0,0.000825]
[1729778926054,0.01101948,67685.0,67684.0,0.14857]
[1729778926892,0.01101948,67685.0,67684.0,0.22862462]
[1729778928284,0.01101948,67685.0,67684.0,0.22567]
[1729778929604,0.02483122,67685.0,67684.0,0.22567]
[1729778930723,0.02483093,67685.0,67684.0,0.22567]
[1729778931833,0.01101948,67685.0,67684.0,0.22567]
[1729778932065,0.01101948,67685.0,67684.0,0.23362446]
[1729778932295,0.01101948,67685.0,67684.0,0.23067]
[1729778932775,0.01381281,67685.0,67684.0,0.23067]
[1729778933889,0.02486375,67685.0,67684.0,0.23067]
[1729778934111,0.02486768,67685.0,67684.0,0.23067]
[1729778934324,0.01381538,67685.0,67684.0,0.23067]
[1729778934754,0.01381538,67685.0,67684.0,0.22567]
[1729778935004,0.02789515,67685.0,67684.0,0.22567]
[1729778935289,0.02789515,67685.0,67684.0,0.21613089]
[1729778935542,0.02789515,67685.0,67684.0,0.147745]
[1729778936649,0.01684285,67685.0,67684.0,0.147745]
[1729778937801,0.00302747,67685.0,67684.0,0.147745]
[1729778938224,0.32775144,67688.0,67682.0,0.295499]
[1729778938434,0.00302179,67685.0,67684.0,0.147745]
[1729778938670,0.04414386,67686.0,67684.0,0.147745]
[1729778938892,0.00302431,67685.0,67684.0,0.147745]
[1729778939564,0.04716817,67685.0,67684.0,0.147745]
[1729778940241,0.00302431,67685.0,67684.0,0.147745]
[1729778942241,0.0472596,67685.0,67684.0,0.147745]
[1729778942457,0.0472596,67685.0,67684.0,0.14759165]
[1729778942458,0.00302431,67685.0,67684.0,0.14759165]
[1729778942941,0.00165,67688.0,67681.0,0.2955]
[1729778943160,0.00165,67688.0,67687.0,0.147738]
[1729778943596,0.00165,67688.0,67687.0,0.15069229]
[1729778943811,0.00165,67688.0,67687.0,0.38231387]
[1729778944044,0.00165,67688.0,67687.0,0.37735958]
[1729778944485,0.00165,67688.0,67687.0,0.243138]
[1729778944913,0.00165,67688.0,67687.0,0.233138]
[1729778945130,0.00165,67688.0,67687.0,0.243138]
[1729778946467,0.00165,67688.0,67687.0,0.238138]
[1729778946714,0.00165,67688.0,67687.0,0.243138]
[1729778947823,0.00165,67688.0,67687.0,0.228138]
[1729778948354,0.00165,67688.0,67687.0,0.233138]
[1729778948983,0.00165,67688.0,67687.0,0.147738]
[1729778950277,0.00165,67688.0,67687.0,0.15069232]
[1729778950526,0.00165,67688.0,67687.0,0.15569232]
[1729778950743,0.00165,67688.0,67687.0,0.152738]
[1729778950966,0.00165,67688.0,67687.0,0.147738]
[1729778951189,0.00165,67688.0,67685.0,0.295482]
[1729778951413,0.00165,67688.0,67684.0,0.000825]
[1729778951414,0.138673,67688.0,67684.0,0.000825]
[1729778951625,0.138673,67688.0,67685.0,0.295486]
[1729778951844,0.138673,67688.0,67684.0,0.000825]
[1729778952064,0.19474356,67687.0,67684.0,0.000825]
[1729778952556,0.147743,67685.0,67684.0,0.000825]
[1729778952557,0.15054009,67686.0,67684.0,0.000825]
[1729778952796,0.00279909,67686.0,67685.0,0.147743]
[1729778953027,0.15054109,67686.0,67684.0,0.000825]
[1729778953498,0.00279909,67686.0,67684.0,0.14857]
[1729778953737,0.147742,67686.0,67684.0,0.000825]
[1729778953991,0.295478,67687.0,67684.0,0.000825]
[1729778953992,0.30107518,67685.0,67684.0,0.000825]
[1729778954264,0.32407518,67685.0,67684.0,0.000825]
[1729778954767,0.48709986,67685.0,67684.0,0.000825]
[1729778955273,0.15333218,67685.0,67684.0,0.000825]
[1729778955524,0.19749758,67685.0,67684.0,0.14857]
[1729778956206,0.19749758,67685.0,67684.0,0.000825]
[1729778956691,0.30107518,67685.0,67684.0,0.000825]
[1729778956927,0.36732211,67685.0,67684.0,0.000825]
[1729778957432,0.0690753,67685.0,67684.0,0.14857]
[1729778957683,0.00282837,67685.0,67684.0,0.000825]
[1729778957925,0.10353938,67685.0,67684.0,0.000825]
[1729778958205,0.25128238,67685.0,67684.0,0.000825]
[1729778958458,0.10353938,67685.0,67684.0,0.000825]
[1729778958731,0.25128238,67685.0,67684.0,0.000825]
[1729778959006,0.16981505,67685.0,67684.0,0.000825]
[1729778959248,0.31755805,67685.0,67684.0,0.000825]
[1729778959489,0.26663944,67685.0,67684.0,0.000825]
[1729778959756,0.26665468,67685.0,67684.0,0.000825]
[1729778960088,0.35498958,67685.0,67684.0,0.000825]
[1729778960497,0.40202157,67685.0,67684.0,0.000825]
[1729778960734,0.25427857,67685.0,67684.0,0.000825]
[1729778961704,0.16594367,67685.0,67684.0,0.14857]
[1729778962175,0.04703037,67685.0,67684.0,0.14857]
[1729778962690,0.00282837,67685.0,67684.0,0.14857]
[1729778963596,0.00282837,67685.0,67684.0,0.15152468]
[1729778964064,0.00165,67686.0,67685.0,0.152743]
[1729778964755,0.00165,67686.0,67685.0,0.15569729]
[1729778964989,0.00165,67686.0,67685.0,0.6855011]
[1729778965226,0.00165,67686.0,67685.0,0.68254681]
[1729778965931,0.00165,67686.0,67685.0,0.69427959]
[1729778966405,0.00165,67689.0,67688.0,0.017]
[1729778966629,0.22076517,67705.0,67697.0,0.37313858]
[1729778966854,0.22076517,67705.0,67697.0,0.52364239]
[1729778967077,0.22076517,67705.0,67704.0,0.152701]
[1729778967523,0.00279885,67705.0,67704.0,0.152701]
[1729778967863,0.00279885,67705.0,67701.0,0.14422158]
[1729778967864,0.22076517,67712.0,67711.0,0.147686]
[1729778968337,0.22357089,67712.0,67711.0,0.147686]
[1729778968579,0.22357089,67712.0,67708.0,0.295386]
[1729778968580,0.00280572,67712.0,67708.0,0.295386]
[1729778968822,0.15049172,67712.0,67707.0,0.147694]
[1729778969068,0.15049172,67712.0,67705.0,0.295395]
[1729778969308,0.15049172,67712.0,67701.0,0.005]
[1729778969310,0.147689,67710.0,67704.0,0.295399]
[1729778969556,0.147689,67710.0,67699.0,0.295421]
[1729778969557,0.13422158,67706.0,67699.0,0.295425]
[1729778969801,0.13422158,67706.0,67693.0,0.22576517]
[1729778970046,0.147704,67703.0,67695.0,0.295442]
[1729778970291,0.13422158,67697.0,67686.0,0.22576517]
[1729778970525,0.15050381,67702.0,67689.0,0.005]
[1729778970526,0.16775253,67701.0,67689.0,0.005]
[1729778970752,0.066303,67706.0,67695.0,0.147721]
[1729778970753,0.00279916,67696.0,67695.0,0.147721]
[1729778971212,0.56313283,67705.0,67701.0,0.147708]
[1729778971444,0.37126898,67705.0,67696.0,0.00295406]
[1729778971684,0.37126898,67705.0,67702.0,0.147704]